[Event "WSTCC-65 2024"]
[Site "Krakow"]
[Date "2024.07.02"]
[Round "1.16"]
[White "Petran, Peter"]
[Black "Irlik, Andrzej"]
[Result "1-0"]
[ECO "A04"]
[WhiteElo "2195"]
[BlackElo "1983"]
[Annotator "RC"]
[PlyCount "95"]
[EventDate "2024.07.01"]
[EventType "team-tourn"]
[EventCountry "POL"]
[SourceTitle "playchess.com"]
[Source "ChessBase"]
[SourceQuality "1"]
[TimeControl "40/5400+30:1800+30"]

1. Nf3 {[%emt 0:00:05]} g6 {[%emt 0:02:02]} 2. d4 {[%emt 0:00:22]} Bg7 {[%emt 0:01:12]} 3. e4 {[%emt 0:00:07]} c6 {[%emt 0:06:02]} 4. h3 {[%emt 0:00:27]} d5 {[%emt 0:02:49]} 5. e5 {[%emt 0:00:05]} f6 {[%emt 0:05:22]} 6. Bf4 {[%emt 0:00:56]} Nh6 {[%emt 0:08:52]} 7. Bd3 {[%emt 0:00:22]} Nf7 {[%emt 0:06:08]} 8. exf6 {[%emt 0:02:49]} exf6 {[%emt 0:03:10]} 9. O-O {[%emt 0:00:13]} O-O {[%emt 0:01:56]} 10. c4 {[%emt 0:00:07]} Nd7 {[%emt 0:10:04]} 11. cxd5 {[%emt 0:00:17]} cxd5 {[%emt 0:04:08]} 12. Nc3 {[%emt 0:00:08]} Nb6 {[%emt 0:02:19]} 13. Nb5 {[%emt 0:17:00]} Bd7 {[%emt 0:06:45]} 14. Bc7 {[%emt 0:05:27]} Qc8 {[%emt 0:18:24]} 15. Bg3 {[%emt 0:08:38]} Bxb5 {[%emt 0:08:01]} 16. Bxb5 {[%emt 0:00:07]} Qd8 {[%emt 0:02:58]} 17. Rc1 {[%emt 0:03:00]} Nd6 {[%emt 0:01:55]} 18. Bd3 {[%emt 0:03:32]} Qd7 {[%emt 0:00:46]} 19. b3 {[%emt 0:00:54]} Rac8 {[%emt 0:01:12]} 20. Re1 {[%emt 0:02:19]} Bh6 {[%emt 0:00:57]} 21. Rxc8 {[%emt 0:00:33]} Rxc8 {[%emt 0:00:35]} 22. Qb1 {[%emt 0:00:39]} Kf7 {[%emt 0:00:30]} 23. h4 {[%emt 0:02:17]} Re8 {[%emt 0:01:20]} 24. h5 {[%emt 0:03:39]} Rxe1+ {[%emt 0:00:19]} 25. Nxe1 {[%emt 0:00:27]} f5 {[%emt 0:01:44]} 26. Nf3 {[%emt 0:03:14]} Kg8 {[%emt 0:01:43]} 27. Ne5 {[%emt 0:01:14]} Qe6 {[%emt 0:00:52]} 28. hxg6 {[%emt 0:02:40]} hxg6 {[%emt 0:00:03]} 29. Nf3 {[%emt 0:05:02]} Ne4 {[%emt 0:00:29]} 30. Bb8 {[%emt 0:02:48]} Nc8 {[%emt 0:00:32]} 31. Qc2 {[%emt 0:00:37]} Qc6 {[%emt 0:00:44]} 32. Qxc6 {[%emt 0:00:26]} bxc6 {[%emt 0:00:02]} 33. Ne5 {[%emt 0:00:15]} c5 {[%emt 0:00:55]} 34. Ba6 {[%emt 0:04:19]} Ne7 {[%emt 0:01:03]} 35. Bxa7 {[%emt 0:00:11]} cxd4 {[%emt 0:00:28]} 36. Bxd4 {[%emt 0:00:11]} Bf8 {[%emt 0:01:29]} 37. f3 {[%emt 0:03:36]} Ng5 {[%emt 0:00:06]} 38. Bb7 {[%emt 0:06:04]} Ne6 {[%emt 0:00:14]} 39. Bb6 {[%emt 0:01:10]} Kg7 {[%emt 0:00:31]} 40. a4 {[%emt 0:00:37]} f4 {[%emt 0:01:07]} 41. Nd7 {[%emt 0:32:28]} d4 {[%emt 0:30:28]} 42. Nxf8 {[%emt 0:00:59]} Kxf8 {[%emt 0:00:09]} 43. Kf1 {[%emt 0:01:14]} Ke8 {[%emt 0:00:35]} 44. a5 {[%emt 0:00:29]} Kd7 {[%emt 0:00:43]} 45. Ke2 {[%emt 0:02:46]} Nc8 {[%emt 0:00:24]} 46. Bd5 {[%emt 0:00:29]} Nc7 {[%emt 0:00:47]} 47. Bxc7 {[%emt 0:01:59]} Kxc7 {[%emt 0:00:02]} 48. Kd3 {[%emt 0:00:10]} 1-0

[Event "WSTCC-65 2024"]
[Site "Krakow"]
[Date "2024.07.02"]
[Round "1.16"]
[White "Vinke, Dietmar"]
[Black "Rozlapa, Vija"]
[Result "1-0"]
[ECO "A08"]
[WhiteElo "2097"]
[BlackElo "1927"]
[Annotator "NA RC"]
[PlyCount "63"]
[EventDate "2024.07.01"]
[EventType "team-tourn"]
[EventCountry "POL"]
[SourceTitle "playchess.com"]
[Source "ChessBase"]
[SourceQuality "1"]
[TimeControl "40/5400+30:1800+30"]

1. Nf3 {[%emt 0:00:03]} d5 {[%emt 0:00:11]} 2. g3 {[%emt 0:00:06]} c5 {[%emt 0:00:31]} 3. Bg2 {[%emt 0:00:04]} Nc6 {[%emt 0:00:21]} 4. O-O {[%emt 0:00:08]} e5 {[%emt 0:01:06]} 5. d3 {[%emt 0:00:07]} Nf6 {[%emt 0:01:17]} 6. Nbd2 {[%emt 0:00:06]} Be6 {[%emt 0:03:41]} 7. e4 {[%emt 0:01:34]} d4 {[%emt 0:03:19]} 8. Qe2 {[%emt 0:16:16]} Bd6 {[%emt 0:04:54]} 9. Nh4 {[%emt 0:15:21]} Qd7 {[%emt 0:17:23]} 10. Nc4 {[%emt 0:08:41]} b5 {[%emt 0:10:39]} 11. Nxd6+ {[%emt 0:00:48]} Qxd6 {[%emt 0:00:02]} 12. f4 {[%emt 0:11:24]} Rd8 {[%emt 0:10:59]} 13. a4 {[%emt 0:14:56]} b4 {[%emt 0:04:33]} 14. b3 {[%emt 0:00:06]} a5 {[%emt 0:00:43]} 15. Nf5 {[%emt 0:03:40]} Bxf5 {[%emt 0:04:19]} 16. fxe5 {[%emt 0:01:17]} Nxe5 {[%emt 0:02:34]} 17. Rxf5 {[%emt 0:00:39]} O-O {[%emt 0:01:14]} 18. Bg5 {[%emt 0:02:27]} Rde8 {[%emt 0:03:42]} 19. Bxf6 {[%emt 0:00:43]} gxf6 {[%emt 0:00:11]} 20. Raf1 {[%emt 0:00:09]} Re6 {[%emt 0:00:38]} 21. Bh3 {[%emt 0:00:25]} Kg7 {[%emt 0:05:48]} 22. R5f2 {[%emt 0:00:48]} Re7 {[%emt 0:01:05]} 23. Qh5 {[%emt 0:07:16]} Ng6 {[%emt 0:04:42]} 24. Qf3 {[%emt 0:00:09]} Re6 {[%emt 0:06:27]} 25. Bxe6 {[%emt 0:00:58]} fxe6 {[%emt 0:00:03]} 26. Qh5 {[%emt 0:00:28]} Qe5 {[%emt 0:00:39]} 27. Qxe5 {[%emt 0:00:20]} Nxe5 {[%emt 0:00:03]} 28. h3 {[%emt 0:00:10]} Kg6 {[%emt 0:01:34]} 29. g4 {[%emt 0:04:54]} Kg5 {[%emt 0:04:51]} 30. Kg2 {[%emt 0:00:07]} h6 {[%emt 0:01:12]} 31. Kg3 {[%emt 0:00:35]} Ng6 {[%emt 0:00:41]} 32. Rf5+ {[%emt 0:00:37]} 1-0

[Event "WSTCC-65 2024"]
[Site "Krakow"]
[Date "2024.07.02"]
[Round "1.16"]
[White "Kot, Jerzy"]
[Black "Lynch, Peter J."]
[Result "1/2-1/2"]
[ECO "B20"]
[WhiteElo "2019"]
[BlackElo "1741"]
[Annotator "NA RC"]
[PlyCount "133"]
[EventDate "2024.07.01"]
[EventType "team-tourn"]
[EventCountry "POL"]
[SourceTitle "playchess.com"]
[Source "ChessBase"]
[SourceQuality "1"]
[TimeControl "40/5400+30:1800+30"]

1. e4 {[%emt 0:00:11]} c5 {[%emt 0:00:11]} 2. a3 {[%emt 0:00:07]} e6 {[%emt 0:01:15]} 3. c3 {[%emt 0:00:11]} Nc6 {[%emt 0:02:19]} 4. b4 {[%emt 0:00:07]} a6 {[%emt 0:01:57]} 5. d4 {[%emt 0:00:49]} cxd4 {[%emt 0:00:42]} 6. cxd4 {[%emt 0:00:08]} d5 {[%emt 0:00:49]} 7. e5 {[%emt 0:00:36]} g6 {[%emt 0:03:39]} 8. Nf3 {[%emt 0:01:05]} h5 {[%emt 0:00:53]} 9. Bd3 {[%emt 0:01:58]} Nh6 {[%emt 0:01:51]} 10. Bg5 {[%emt 0:02:47]} Be7 {[%emt 0:02:46]} 11. Bxh6 {[%emt 0:04:47]} Rxh6 {[%emt 0:00:52]} 12. O-O {[%emt 0:04:19]} Bd7 {[%emt 0:02:18]} 13. Qd2 {[%emt 0:01:28]} Rh8 {[%emt 0:01:17]} 14. Rd1 {[%emt 0:01:43]} Qb6 {[%emt 0:02:25]} 15. Bf1 {[%emt 0:00:24]} Rc8 {[%emt 0:06:41]} 16. Nc3 {[%emt 0:00:44]} Na7 {[%emt 0:03:01]} 17. Bd3 {[%emt 0:01:05]} Bf8 {[%emt 0:11:04]} 18. Ng5 {[%emt 0:12:42]} Bh6 {[%emt 0:02:38]} 19. Ne2 {[%emt 0:00:18]} Ba4 {[%emt 0:05:47]} 20. Rdc1 {[%emt 0:00:52]} Qd8 {[%emt 0:02:13]} 21. f4 {[%emt 0:01:23]} Bb5 {[%emt 0:09:14]} 22. Rc5 {[%emt 0:03:45]} Bf8 {[%emt 0:03:55]} 23. Rxc8 {[%emt 0:00:58]} Qxc8 {[%emt 0:00:48]} 24. Rc1 {[%emt 0:01:28]} Qd7 {[%emt 0:01:21]} 25. Rc3 {[%emt 0:03:49]} Be7 {[%emt 0:04:32]} 26. Nc1 {[%emt 0:06:34]} Bd8 {[%emt 0:05:59]} 27. Nb3 {[%emt 0:01:06]} b6 {[%emt 0:01:00]} 28. Qc1 {[%emt 0:05:04]} Bxd3 29. Rxd3 {[%emt 0:00:18]} Nb5 {[%emt 0:13:41]} 30. h4 {[%emt 0:01:50]} Kf8 {[%emt 0:02:09]} 31. Nd2 {[%emt 0:04:06]} Kg7 {[%emt 0:01:03]} 32. Qc2 {[%emt 0:04:11]} Be7 {[%emt 0:02:30]} 33. Qd1 {[%emt 0:02:58]} Rc8 {[%emt 0:00:11]} 34. g4 {[%emt 0:00:29]} hxg4 {[%emt 0:00:31]} 35. Qxg4 {[%emt 0:01:08]} Bxg5 {[%emt 0:00:53]} 36. fxg5 {[%emt 0:00:29]} Rc3 {[%emt 0:00:41]} 37. Qf3 {[%emt 0:04:15]} Rxd3 {[%emt 0:01:11]} 38. Qxd3 {[%emt 0:00:02]} Qc7 {[%emt 0:00:58]} 39. Kf2 {[%emt 0:03:18]} Qc3 {[%emt 0:00:14]} 40. Qxc3 {[%emt 0:00:27]} Nxc3 {[%emt 0:00:04]} 41. Ke3 {[%emt 0:31:15]} Kf8 {[%emt 0:30:15]} 42. Kd3 {[%emt 0:00:38]} Nb5 {[%emt 0:00:29]} 43. Nb1 {[%emt 0:02:20]} Ke7 {[%emt 0:00:14]} 44. a4 {[%emt 0:00:38]} Nc7 {[%emt 0:00:05]} 45. Nd2 {[%emt 0:01:00]} Kd7 {[%emt 0:00:24]} 46. Kc3 {[%emt 0:01:16]} Kc6 {[%emt 0:00:22]} 47. Nf1 {[%emt 0:00:37]} Ne8 {[%emt 0:00:16]} 48. Ne3 {[%emt 0:00:43]} Ng7 {[%emt 0:00:38]} 49. Kd3 {[%emt 0:01:18]} Kd7 {[%emt 0:00:42]} 50. Kc3 {[%emt 0:02:23]} Kc6 {[%emt 0:00:16]} 51. Kd2 {[%emt 0:00:44]} Kd7 {[%emt 0:00:24]} 52. Kd3 {[%emt 0:00:11]} Kc7 {[%emt 0:00:18]} 53. Ke2 {[%emt 0:01:58]} Kd7 {[%emt 0:00:12]} 54. Kf3 {[%emt 0:01:16]} Ke7 {[%emt 0:00:44]} 55. Ke2 {[%emt 0:00:44]} Kd7 {[%emt 0:00:29]} 56. Kd3 {[%emt 0:00:26]} Kc7 {[%emt 0:00:15]} 57. Kc3 {[%emt 0:00:22]} Kc6 {[%emt 0:00:12]} 58. Kb3 {[%emt 0:03:37]} Kb7 {[%emt 0:00:24]} 59. Kc2 {[%emt 0:00:50]} Kc6 {[%emt 0:00:19]} 60. Kc3 {[%emt 0:00:16]} Kc7 {[%emt 0:00:22]} 61. Kd2 {[%emt 0:01:51]} Kd7 {[%emt 0:00:07]} 62. Kd3 {[%emt 0:00:08]} Kc7 {[%emt 0:00:12]} 63. Ng4 {[%emt 0:01:35]} Nf5 {[%emt 0:00:55]} 64. Nh6 {[%emt 0:00:15]} Nxh4 {[%emt 0:00:57]} 65. Nxf7 {[%emt 0:00:10]} Nf5 {[%emt 0:00:23]} 66. Nh6 {[%emt 0:00:33]} Kd7 {[%emt 0:00:29]} 67. Ng4 {[%emt 0:01:06]} 1/2-1/2

[Event "WSTCC-65 2024"]
[Site "Krakow"]
[Date "2024.07.02"]
[Round "1.17"]
[White "Kyas, Juergen"]
[Black "Freeman, Richard C P"]
[Result "1-0"]
[ECO "B01"]
[WhiteElo "2173"]
[BlackElo "1951"]
[Annotator "RC"]
[PlyCount "57"]
[EventDate "2024.07.01"]
[EventType "team-tourn"]
[EventCountry "POL"]
[SourceTitle "playchess.com"]
[Source "ChessBase"]
[SourceQuality "1"]
[TimeControl "40/5400+30:1800+30"]

1. e4 {[%emt 0:00:04]} d5 {[%emt 0:00:14]} 2. exd5 {[%emt 0:00:03]} Nf6 {[%emt 0:00:09]} 3. d4 {[%emt 0:00:07]} Bg4 {[%emt 0:00:08]} 4. Nf3 {[%emt 0:00:08]} Qxd5 {[%emt 0:00:57]} 5. Be2 {[%emt 0:00:23]} Nc6 {[%emt 0:01:00]} 6. h3 {[%emt 0:00:56]} Bh5 {[%emt 0:08:39]} 7. c4 {[%emt 0:09:01]} Qd6 {[%emt 0:06:48]} 8. O-O {[%emt 0:07:49]} O-O-O {[%emt 0:01:55]} 9. d5 {[%emt 0:01:53]} Bxf3 {[%emt 0:22:03]} 10. Bxf3 {[%emt 0:00:05]} Ne5 {[%emt 0:00:23]} 11. Be2 {[%emt 0:03:54]} e6 {[%emt 0:03:40]} 12. Qa4 {[%emt 0:00:45]} exd5 {[%emt 0:08:44]} 13. Qxa7 {[%emt 0:02:53]} Qa6 {[%emt 0:21:50]} 14. Qxa6 {[%emt 0:01:31]} bxa6 {[%emt 0:00:06]} 15. cxd5 {[%emt 0:00:17]} Kb7 {[%emt 0:00:15]} 16. Nc3 {[%emt 0:00:29]} Nxd5 {[%emt 0:00:13]} 17. Nxd5 {[%emt 0:02:12]} Rxd5 {[%emt 0:00:36]} 18. f4 {[%emt 0:01:49]} Bc5+ {[%emt 0:03:44]} 19. Kh1 {[%emt 0:02:32]} Nc6 {[%emt 0:00:17]} 20. Bf3 {[%emt 0:00:30]} Rd7 {[%emt 0:07:35]} 21. b4 {[%emt 0:00:58]} Bd4 {[%emt 0:01:30]} 22. Rb1 {[%emt 0:00:05]} Kb6 {[%emt 0:00:18]} 23. a4 {[%emt 0:03:27]} Ne7 {[%emt 0:00:43]} 24. b5 {[%emt 0:24:12]} a5 {[%emt 0:00:17]} 25. Ba3 {[%emt 0:01:00]} Nd5 {[%emt 0:06:25]} 26. Rfc1 {[%emt 0:01:21]} Nc3 {[%emt 0:02:08]} 27. Rb3 {[%emt 0:00:12]} Nxa4 {[%emt 0:00:12]} 28. Rc6+ {[%emt 0:00:44]} Ka7 {[%emt 0:00:14]} 29. Ra6+ {[%emt 0:00:18]} 1-0

[Event "WSTCC-65 2024"]
[Site "Krakow"]
[Date "2024.07.02"]
[Round "1.17"]
[White "Smith, Andrew Philip"]
[Black "Sosnowska, Elzbieta"]
[Result "1-0"]
[ECO "C22"]
[WhiteElo "2037"]
[BlackElo "1810"]
[Annotator "NA RC"]
[PlyCount "59"]
[EventDate "2024.07.01"]
[EventType "team-tourn"]
[EventCountry "POL"]
[SourceTitle "playchess.com"]
[Source "ChessBase"]
[SourceQuality "1"]
[TimeControl "40/5400+30:1800+30"]

1. e4 {[%emt 0:00:07]} e5 {[%emt 0:00:34]} 2. d4 {[%emt 0:00:11]} exd4 {[%emt 0:00:11]} 3. Qxd4 {[%emt 0:00:07]} Nc6 {[%emt 0:00:19]} 4. Qe3 {[%emt 0:00:08]} g6 {[%emt 0:01:17]} 5. Nc3 {[%emt 0:00:23]} Bg7 {[%emt 0:00:24]} 6. Bc4 {[%emt 0:03:11]} Ne5 {[%emt 0:02:03]} 7. Bb3 {[%emt 0:01:00]} d6 {[%emt 0:00:12]} 8. Nf3 {[%emt 0:05:01]} Nf6 {[%emt 0:11:13]} 9. h3 {[%emt 0:07:51]} O-O {[%emt 0:01:33]} 10. O-O {[%emt 0:01:18]} c6 {[%emt 0:03:38]} 11. Rd1 {[%emt 0:02:55]} Qe7 {[%emt 0:00:54]} 12. a4 {[%emt 0:11:14]} Be6 {[%emt 0:06:24]} 13. Nxe5 {[%emt 0:05:29]} dxe5 {[%emt 0:00:27]} 14. Bxe6 {[%emt 0:00:34]} Qxe6 {[%emt 0:01:39]} 15. b3 {[%emt 0:10:21]} b6 {[%emt 0:03:32]} 16. a5 {[%emt 0:06:26]} c5 {[%emt 0:05:53]} 17. axb6 {[%emt 0:09:33]} axb6 {[%emt 0:00:15]} 18. Rxa8 {[%emt 0:00:32]} Rxa8 {[%emt 0:00:02]} 19. Qd3 {[%emt 0:00:13]} Bf8 {[%emt 0:06:13]} 20. Bg5 {[%emt 0:00:59]} Ne8 {[%emt 0:02:34]} 21. Qd7 {[%emt 0:04:00]} Qxd7 {[%emt 0:03:32]} 22. Rxd7 {[%emt 0:00:06]} f6 {[%emt 0:00:46]} 23. Be3 {[%emt 0:00:34]} Nd6 {[%emt 0:00:44]} 24. Nd5 {[%emt 0:01:52]} Nxe4 {[%emt 0:01:27]} 25. f3 {[%emt 0:00:21]} Ra1+ {[%emt 0:00:59]} 26. Kh2 {[%emt 0:00:09]} Bg7 {[%emt 0:05:41]} 27. fxe4 {[%emt 0:00:35]} Rf1 {[%emt 0:00:24]} 28. Nxb6 {[%emt 0:01:00]} Re1 {[%emt 0:00:32]} 29. Nd5 {[%emt 0:00:29]} g5 {[%emt 0:00:36]} 30. Ne7+ {[%emt 0:00:42]} 1-0

[Event "WSTCC-65 2024"]
[Site "Krakow"]
[Date "2024.07.02"]
[Round "1.18"]
[White "Wood, Peter R"]
[Black "Baum, Bernd"]
[Result "0-1"]
[ECO "B25"]
[WhiteElo "1948"]
[BlackElo "2203"]
[Annotator "RC"]
[PlyCount "132"]
[EventDate "2024.07.01"]
[EventType "team-tourn"]
[EventCountry "POL"]
[SourceTitle "playchess.com"]
[Source "ChessBase"]
[SourceQuality "1"]
[TimeControl "40/5400+30:1800+30"]

1. e4 {[%emt 0:00:17]} c5 {[%emt 0:00:33]} 2. Nc3 {[%emt 0:00:20]} Nc6 {[%emt 0:00:09]} 3. g3 {[%emt 0:00:15]} g6 {[%emt 0:00:12]} 4. Bg2 {[%emt 0:00:20]} Bg7 {[%emt 0:00:03]} 5. d3 {[%emt 0:00:28]} d6 {[%emt 0:00:14]} 6. f4 {[%emt 0:00:33]} e6 {[%emt 0:00:39]} 7. Nf3 {[%emt 0:00:23]} Nge7 {[%emt 0:00:10]} 8. O-O {[%emt 0:00:27]} O-O {[%emt 0:00:08]} 9. Be3 {[%emt 0:00:41]} Nd4 {[%emt 0:01:25]} 10. Bf2 {[%emt 0:07:59]} Rb8 {[%emt 0:02:01]} 11. e5 {[%emt 0:03:03]} Nxf3+ {[%emt 0:08:20]} 12. Qxf3 {[%emt 0:06:11]} b6 {[%emt 0:00:46]} 13. Qe2 {[%emt 0:13:10]} Bb7 {[%emt 0:01:56]} 14. g4 {[%emt 0:06:13]} Bxg2 {[%emt 0:05:33]} 15. Kxg2 {[%emt 0:00:11]} dxe5 {[%emt 0:17:34]} 16. fxe5 {[%emt 0:00:12]} Nc6 {[%emt 0:00:42]} 17. Bg3 {[%emt 0:00:56]} Qe7 {[%emt 0:10:11]} 18. Rae1 {[%emt 0:03:49]} Rbd8 {[%emt 0:01:41]} 19. h3 {[%emt 0:05:22]} Nd4 {[%emt 0:07:28]} 20. Qd2 {[%emt 0:12:31]} c4 {[%emt 0:02:25]} 21. Ne4 {[%emt 0:01:54]} cxd3 {[%emt 0:00:58]} 22. cxd3 {[%emt 0:04:39]} Rc8 {[%emt 0:02:42]} 23. Rc1 {[%emt 0:01:31]} Qb7 {[%emt 0:01:05]} 24. Qf2 {[%emt 0:05:55]} Rxc1 {[%emt 0:03:48]} 25. Rxc1 {[%emt 0:00:14]} Qd5 {[%emt 0:02:03]} 26. Rc4 {[%emt 0:07:19]} Nc6 {[%emt 0:03:42]} 27. Kh2 {[%emt 0:10:25]} Nxe5 {[%emt 0:05:49]} 28. Rc7 {[%emt 0:02:00]} f5 {[%emt 0:03:43]} 29. Nc3 {[%emt 0:02:59]} Qxd3 {[%emt 0:03:49]} 30. Rxg7+ {[%emt 0:00:10]} Kxg7 {[%emt 0:00:27]} 31. Bxe5+ {[%emt 0:00:07]} Kg8 {[%emt 0:00:34]} 32. g5 {[%emt 0:00:54]} Rd8 {[%emt 0:01:41]} 33. Ne2 {[%emt 0:02:28]} Qe4 {[%emt 0:01:36]} 34. Bc3 {[%emt 0:01:02]} Rd3 {[%emt 0:03:20]} 35. Ng3 {[%emt 0:01:10]} Qe3 {[%emt 0:03:18]} 36. Qg2 {[%emt 0:00:35]} Qf3 {[%emt 0:00:11]} 37. Qxf3 {[%emt 0:00:12]} Rxf3 {[%emt 0:00:02]} 38. Kg2 {[%emt 0:00:25]} Rd3 {[%emt 0:00:09]} 39. Ne2 {[%emt 0:00:51]} e5 {[%emt 0:02:25]} 40. Nc1 {[%emt 0:00:23]} Rd5 {[%emt 0:01:19]} 41. Kf2 {[%emt 0:02:11]} Kf7 {[%emt 0:00:13]} 42. Ke3 {[%emt 0:04:06]} Rd1 {[%emt 0:06:32]} 43. Nd3 {[%emt 0:01:39]} e4 {[%emt 0:00:24]} 44. Ne1 {[%emt 0:04:54]} Rd7 {[%emt 0:05:14]} 45. h4 {[%emt 0:03:16]} Ke6 {[%emt 0:00:44]} 46. Kf4 {[%emt 0:05:53]} Kd5 {[%emt 0:04:21]} 47. Ke3 {[%emt 0:01:07]} Kc4 {[%emt 0:01:13]} 48. Kf4 {[%emt 0:00:51]} b5 {[%emt 0:02:56]} 49. a3 {[%emt 0:00:48]} Kb3 {[%emt 0:00:16]} 50. Ke3 {[%emt 0:02:46]} a5 {[%emt 0:04:42]} 51. Bxa5 {[%emt 0:03:23]} Kxb2 {[%emt 0:00:01]} 52. Bb4 Kc1 53. Bc3 {[%emt 0:03:31]} Kd1 {[%emt 0:01:24]} 54. Bb4 {[%emt 0:00:20]} Rc7 {[%emt 0:01:09]} 55. Ba5 {[%emt 0:00:22]} Rc4 {[%emt 0:00:42]} 56. Ng2 {[%emt 0:02:34]} Rc2 {[%emt 0:00:52]} 57. Nf4 {[%emt 0:00:26]} Rh2 {[%emt 0:01:07]} 58. Nd5 {[%emt 0:00:24]} Rh3+ {[%emt 0:03:07]} 59. Kd4 {[%emt 0:00:46]} Rxa3 {[%emt 0:00:15]} 60. Bb4 {[%emt 0:00:38]} Rd3+ {[%emt 0:01:08]} 61. Ke5 {[%emt 0:00:32]} Rh3 {[%emt 0:00:49]} 62. Nc3+ {[%emt 0:00:31]} Kc2 {[%emt 0:00:39]} 63. Nxb5 {[%emt 0:00:14]} Rxh4 {[%emt 0:00:14]} 64. Nd4+ {[%emt 0:00:32]} Kd1 {[%emt 0:01:31]} 65. Bc5 {[%emt 0:01:05]} e3 {[%emt 0:02:22]} 66. Nf3 {[%emt 0:01:08]} Re4+ 0-1

[Event "WSTCC-65 2024"]
[Site "Krakow"]
[Date "2024.07.02"]
[Round "1.18"]
[White "Marks, Zofia"]
[Black "Morriss, Pete"]
[Result "0-1"]
[ECO "A05"]
[WhiteElo "1906"]
[BlackElo "1982"]
[Annotator "NA RC"]
[PlyCount "63"]
[EventDate "2024.07.01"]
[EventType "team-tourn"]
[EventCountry "POL"]
[SourceTitle "playchess.com"]
[Source "ChessBase"]
[SourceQuality "1"]
[TimeControl "40/5400+30:1800+30"]

1. Nf3 {[%emt 0:00:25]} Nf6 {[%emt 0:00:05]} 2. c4 {[%emt 0:00:17]} e6 {[%emt 0:00:18]} 3. g3 {[%emt 0:01:04]} d5 {[%emt 0:00:30]} 4. Bg2 {[%emt 0:00:54]} c5 {[%emt 0:00:24]} 5. O-O {[%emt 0:01:11]} Nc6 6. cxd5 {[%emt 0:00:22]} exd5 {[%emt 0:02:57]} 7. d3 {[%emt 0:06:00]} Be7 {[%emt 0:02:37]} 8. a3 {[%emt 0:01:06]} O-O {[%emt 0:01:20]} 9. Qc2 {[%emt 0:01:59]} h6 {[%emt 0:03:10]} 10. b3 {[%emt 0:00:54]} Be6 {[%emt 0:03:00]} 11. Bb2 {[%emt 0:03:31]} Rc8 {[%emt 0:02:56]} 12. Nbd2 {[%emt 0:02:09]} b5 {[%emt 0:08:37]} 13. Rac1 {[%emt 0:06:00]} Na5 {[%emt 0:04:57]} 14. Qb1 {[%emt 0:12:16]} c4 {[%emt 0:18:29]} 15. b4 {[%emt 0:01:13]} Nc6 {[%emt 0:01:59]} 16. Nd4 {[%emt 0:04:54]} Nxd4 {[%emt 0:05:22]} 17. Bxd4 {[%emt 0:00:05]} a5 {[%emt 0:01:22]} 18. Nf3 {[%emt 0:09:53]} axb4 {[%emt 0:08:00]} 19. axb4 {[%emt 0:00:13]} Nd7 {[%emt 0:00:42]} 20. Rfd1 {[%emt 0:07:12]} Bf6 {[%emt 0:02:39]} 21. Rd2 {[%emt 0:06:09]} Bxd4 {[%emt 0:03:28]} 22. Nxd4 {[%emt 0:00:03]} Qb6 {[%emt 0:01:16]} 23. e3 {[%emt 0:02:48]} Ne5 {[%emt 0:03:10]} 24. Bf1 {[%emt 0:04:57]} Ra8 {[%emt 0:08:27]} 25. Rc3 {[%emt 0:07:59]} Ra4 {[%emt 0:01:45]} 26. dxc4 {[%emt 0:07:42]} Nxc4 {[%emt 0:02:27]} 27. Ra2 {[%emt 0:01:58]} Rfa8 {[%emt 0:01:04]} 28. Rxa4 {[%emt 0:01:12]} Rxa4 {[%emt 0:00:36]} 29. Bxc4 {[%emt 0:05:28]} dxc4 {[%emt 0:01:11]} 30. Kg2 {[%emt 0:03:23]} Qd6 {[%emt 0:01:27]} 31. Nxe6 {[%emt 0:00:00]} Rxb4 {[%emt 0:00:00]} 32. Qe4 0-1

[Event "WSTCC-65 2024"]
[Site "Krakow"]
[Date "2024.07.02"]
[Round "1.19"]
[White "Glaessl, Matthias"]
[Black "Reuben, Stewart"]
[Result "1-0"]
[ECO "B35"]
[WhiteElo "2196"]
[BlackElo "1995"]
[Annotator "RC"]
[PlyCount "121"]
[EventDate "2024.07.01"]
[EventType "team-tourn"]
[EventCountry "POL"]
[SourceTitle "playchess.com"]
[Source "ChessBase"]
[SourceQuality "1"]
[TimeControl "40/5400+30:1800+30"]

1. e4 {[%emt 0:00:04]} c5 {[%emt 0:00:09]} 2. Nf3 {[%emt 0:00:04]} Nc6 {[%emt 0:00:08]} 3. d4 {[%emt 0:00:07]} cxd4 {[%emt 0:00:07]} 4. Nxd4 {[%emt 0:00:03]} g6 {[%emt 0:00:12]} 5. Nc3 {[%emt 0:00:20]} Bg7 {[%emt 0:00:10]} 6. Be3 {[%emt 0:00:05]} Nf6 {[%emt 0:00:29]} 7. Bc4 {[%emt 0:00:48]} O-O {[%emt 0:00:26]} 8. Bb3 {[%emt 0:00:03]} a6 {[%emt 0:00:43]} 9. O-O {[%emt 0:10:44]} b5 {[%emt 0:09:55]} 10. Re1 {[%emt 0:16:21]} Qc7 {[%emt 0:08:02]} 11. f3 {[%emt 0:06:31]} Na5 {[%emt 0:05:58]} 12. Nd5 {[%emt 0:10:20]} Nxd5 {[%emt 0:00:26]} 13. Bxd5 {[%emt 0:00:33]} Bb7 {[%emt 0:00:35]} 14. Bxb7 {[%emt 0:04:15]} Qxb7 {[%emt 0:00:45]} 15. Bf2 {[%emt 0:05:30]} d6 {[%emt 0:05:39]} 16. c3 {[%emt 0:05:17]} Rac8 {[%emt 0:04:23]} 17. Nc2 {[%emt 0:01:58]} Nc4 {[%emt 0:02:40]} 18. Rb1 {[%emt 0:00:30]} Rfd8 {[%emt 0:02:29]} 19. Ne3 {[%emt 0:03:56]} e6 {[%emt 0:07:34]} 20. Qe2 {[%emt 0:01:00]} Qc6 {[%emt 0:05:13]} 21. Red1 {[%emt 0:00:59]} Nxe3 {[%emt 0:02:22]} 22. Bxe3 {[%emt 0:03:02]} d5 {[%emt 0:04:31]} 23. exd5 {[%emt 0:00:38]} Rxd5 {[%emt 0:00:25]} 24. a3 {[%emt 0:02:58]} Rcd8 {[%emt 0:01:35]} 25. Rxd5 {[%emt 0:00:46]} Qxd5 {[%emt 0:00:41]} 26. Rc1 {[%emt 0:01:01]} Qb3 {[%emt 0:08:00]} 27. Rc2 {[%emt 0:02:54]} Qc4 {[%emt 0:05:58]} 28. Rd2 {[%emt 0:02:07]} Qxe2 {[%emt 0:00:36]} 29. Rxe2 {[%emt 0:00:02]} Rd3 {[%emt 0:01:08]} 30. Kf2 {[%emt 0:01:15]} Kf8 {[%emt 0:00:36]} 31. Rc2 {[%emt 0:01:37]} Ke8 {[%emt 0:01:09]} 32. Ke2 {[%emt 0:00:15]} Rd5 {[%emt 0:00:51]} 33. Rd2 {[%emt 0:01:50]} Rxd2+ {[%emt 0:00:15]} 34. Kxd2 {[%emt 0:00:08]} Kd7 {[%emt 0:00:17]} 35. Kd3 {[%emt 0:00:13]} Kc6 {[%emt 0:00:32]} 36. b3 {[%emt 0:02:23]} Bf8 {[%emt 0:03:28]} 37. Bc1 {[%emt 0:00:05]} Bd6 {[%emt 0:01:47]} 38. h3 {[%emt 0:00:40]} e5 {[%emt 0:01:49]} 39. c4 {[%emt 0:00:37]} f5 {[%emt 0:02:14]} 40. cxb5+ {[%emt 0:03:07]} Kxb5 {[%emt 0:00:58]} 41. Bb2 {[%emt 0:31:07]} a5 {[%emt 0:31:44]} 42. Bc1 {[%emt 0:06:22]} Kc5 {[%emt 0:10:34]} 43. Bd2 {[%emt 0:01:24]} Kd5 {[%emt 0:00:12]} 44. a4 {[%emt 0:03:38]} Bc7 {[%emt 0:00:44]} 45. Bc3 {[%emt 0:01:01]} Bb6 {[%emt 0:00:20]} 46. b4 {[%emt 0:00:33]} axb4 {[%emt 0:01:31]} 47. Bxb4 {[%emt 0:00:01]} e4+ {[%emt 0:00:35]} 48. fxe4+ {[%emt 0:00:03]} fxe4+ {[%emt 0:00:12]} 49. Ke2 {[%emt 0:00:07]} Kc4 {[%emt 0:00:23]} 50. Bd2 {[%emt 0:00:36]} Bc5 {[%emt 0:00:57]} 51. Be3 {[%emt 0:00:33]} Bb4 {[%emt 0:00:23]} 52. Bb6 {[%emt 0:00:13]} Kd5 {[%emt 0:00:42]} 53. a5 {[%emt 0:00:41]} Kc6 {[%emt 0:00:23]} 54. Ke3 {[%emt 0:00:12]} Kb5 {[%emt 0:02:01]} 55. Kxe4 {[%emt 0:00:32]} Bxa5 {[%emt 0:00:25]} 56. Bxa5 {[%emt 0:00:03]} Kxa5 {[%emt 0:00:06]} 57. Ke5 {[%emt 0:00:13]} Kb5 {[%emt 0:00:18]} 58. Kf6 {[%emt 0:00:21]} Kc6 {[%emt 0:00:09]} 59. Kg7 {[%emt 0:00:08]} Kd5 {[%emt 0:00:25]} 60. Kxh7 {[%emt 0:00:09]} g5 {[%emt 0:00:29]} 61. Kg6 {[%emt 0:00:08]} 1-0